fUSD/lending_fUSD_20250923
["ID","MTS","AMOUNT","RATE_DAILY","PERIOD"]
[387215463,1758652256682,-1097.92,0.00024657,3]
[387215464,1758652256691,-400.0,0.00024657,3]
[387215465,1758652256701,-400.0,0.00024657,3]
[387215466,1758652256710,-400.0,0.00024657,3]
[387215467,1758652256720,-1614.75,0.00024657,3]
[387215468,1758652256729,-430.61,0.00024657,3]
[387215469,1758652256739,-558.01,0.00024657,3]
[387215470,1758652256748,-400.0,0.00024657,3]
[387215471,1758652256758,-400.0,0.00024657,3]
[387215472,1758652256767,-400.0,0.00024657,3]
[387215473,1758652256777,-400.0,0.00024657,3]
[387215474,1758652256786,-400.0,0.00024657,3]
[387215475,1758652256796,-400.0,0.00024657,3]
[387215476,1758652256805,-500.0,0.00024657,3]
[387215477,1758652256815,-500.0,0.00024657,3]
[387215478,1758652256825,-500.0,0.00024657,3]
[387215479,1758652256834,-500.0,0.00024657,3]
[387215480,1758652256844,-500.0,0.00024657,3]
[387215481,1758652256854,-1559.84,0.00024657,3]
[387215482,1758652256864,-500.0,0.00024657,3]
[387215483,1758652256873,-490.61,0.00024657,3]
[387215484,1758652256883,-500.0,0.00024657,3]
[387215485,1758652256892,-900.38,0.00024657,3]
[387215486,1758652256904,-500.0,0.00024657,3]
[387215487,1758652256914,-239.73114581,0.00024657,3]
[387215488,1758652256924,-13158.29,0.00024657,3]
[387215489,1758652256933,-400.93838854,0.00024657,3]
[387215490,1758652256943,-1494.23,0.00024657,3]
[387215491,1758652256952,-400.0,0.00024657,3]
[387215492,1758652257049,-401.87594304,0.00024657,3]
[387215493,1758652257058,-400.0,0.00024657,3]
[387215494,1758652257068,-517.37,0.00024657,3]
[387215495,1758652257076,-400.0,0.00024657,3]
[387215496,1758652257086,-400.0,0.00024657,3]
[387215497,1758652257097,-1345.99,0.00024657,3]
[387215498,1758652257108,-1205.91,0.00024657,3]
[387215499,1758652257118,-400.0,0.00024657,3]
[387215500,1758652257129,-1511.89,0.00024657,3]
[387215501,1758652257139,-400.0,0.00024657,3]
[387215502,1758652257150,-982.24,0.00024657,3]
[387215503,1758652257159,-400.0,0.00024657,3]
[387215504,1758652257168,-400.0,0.00024657,3]
[387215505,1758652257177,-400.0,0.00024657,3]
[387215506,1758652257187,-775.0,0.00024657,3]
[387215507,1758652257197,-869.63,0.00024657,3]
[387215508,1758652257206,-400.0,0.00024657,3]
[387215509,1758652257215,-400.0,0.00024657,3]
[387215510,1758652257225,-750.26,0.00024657,3]
[387215511,1758652257234,-400.0,0.00024657,3]
[387215512,1758652257243,-400.0,0.00024657,3]
[387215513,1758652257252,-725.79,0.00024657,3]
[387215514,1758652257262,-400.0,0.00024657,3]
[387215515,1758652257272,-1583.12,0.00024657,3]
[387215516,1758652257281,-400.0,0.00024657,3]
[387215517,1758652257290,-400.0,0.00024657,3]
[387215518,1758652257299,-401.17977913,0.00024657,3]
[387215519,1758652257310,-400.0,0.00024657,3]
[387215520,1758652257320,-400.0,0.00024657,3]
[387215521,1758652257330,-400.0,0.00024657,3]
[387215522,1758652257340,-942.88,0.00024657,3]
[387215523,1758652257349,-866.72,0.00024657,3]
[387215524,1758652257358,-400.0,0.00024657,3]
[387215525,1758652257367,-1539.92,0.00024657,3]
[387215526,1758652257376,-400.0,0.00024657,3]
[387215527,1758652257385,-603.92,0.00024657,3]
[387215528,1758652257397,-400.0,0.00024657,3]
[387215529,1758652257406,-1686.46,0.00024657,3]
[387215530,1758652257415,-400.0,0.00024657,3]
[387215531,1758652257424,-400.0,0.00024657,3]
[387215532,1758652257434,-400.0,0.00024657,3]
[387215533,1758652257445,-301.74803829,0.00024657,3]
[387215534,1758652257454,-496.91,0.00024657,3]
[387215535,1758652257464,-400.0,0.00024657,3]
[387215536,1758652257474,-2586.73,0.00024657,3]
[387215537,1758652257484,-1601.37,0.00024657,3]
[387215538,1758652257493,-1059.47,0.00024657,3]
[387215539,1758652257502,-400.0,0.00024657,3]
[387215540,1758652257511,-13080.15,0.00024657,3]
[387215541,1758652257520,-554.81,0.00024657,3]
[387215542,1758652257531,-1417.46,0.00024657,3]
[387215543,1758652257540,-405.41738929,0.00024657,3]
[387215544,1758652257550,-400.0,0.00024657,3]
[387215545,1758652257559,-1150.4,0.00024657,3]
[387215546,1758652257568,-540.72568869,0.00024657,3]
[387215547,1758652257577,-1093.33,0.00024657,3]
[387215548,1758652257587,-524.7,0.00024657,3]
[387215549,1758652257597,-400.0,0.00024657,3]
[387215550,1758652257607,-400.0,0.00024657,3]
[387215551,1758652257616,-400.0,0.00024657,3]
[387215552,1758652257626,-1075.45,0.00024657,3]
[387215553,1758652257635,-400.0,0.00024657,3]
[387215554,1758652257645,-523.7,0.00024657,3]
[387215555,1758652257655,-944.69,0.00024657,3]
[387215556,1758652257665,-401.4690855,0.00024657,3]
[387215557,1758652257674,-1930.82,0.00024657,3]
[387215558,1758652257683,-400.0,0.00024657,3]
[387215559,1758652257693,-890.09,0.00024657,3]
[387215560,1758652257702,-400.94807575,0.00024657,3]
[387215561,1758652257711,-1067.33,0.00024657,3]
[387215562,1758652257721,-1410.3,0.00024657,3]
[387215563,1758652257729,-1549.89,0.00024657,3]
[387215564,1758652257738,-1330.63,0.00024657,3]
[387215565,1758652257748,-400.0,0.00024657,3]
[387215566,1758652257757,-1799.47,0.00024657,3]
[387215567,1758652257766,-400.0,0.00024657,3]
[387215568,1758652257775,-400.0,0.00024657,3]
[387215569,1758652257785,-2124.15,0.00024657,3]
[387215570,1758652257794,-400.0,0.00024657,3]
[387215571,1758652257803,-400.0,0.00024657,3]
[387215572,1758652257812,-400.0,0.00024657,3]
[387215573,1758652257821,-400.0,0.00024657,3]
[387215574,1758652257830,-1779.35,0.00024657,3]
[387215575,1758652257839,-768.68,0.00024657,3]
[387215576,1758652257848,-400.0,0.00024657,3]
[387215577,1758652257858,-400.0,0.00024657,3]
[387215578,1758652257866,-400.0,0.00024657,3]
[387215579,1758652257875,-400.0,0.00024657,3]
[387215580,1758652257885,-2070.48,0.00024657,3]
[387215581,1758652257894,-1355.87,0.00024657,3]
[387215582,1758652257905,-897.89,0.00024657,3]
[387215583,1758652257914,-400.0,0.00024657,3]
[387215584,1758652257923,-500.0,0.00024657,3]
[387215585,1758652257933,-400.0,0.00024657,3]
[387215586,1758652257942,-500.0,0.00024657,3]
[387215587,1758652257951,-500.0,0.00024657,3]
[387215588,1758652257960,-500.0,0.00024657,3]
[387215589,1758652257969,-500.0,0.00024657,3]
[387215590,1758652257978,-400.0,0.00024657,3]
[387215591,1758652257987,-500.0,0.00024657,3]
[387215592,1758652257997,-442.24,0.00024657,3]
[387215593,1758652258006,-500.0,0.00024657,3]
[387215594,1758652258015,-500.0,0.00024657,3]
[387215595,1758652258025,-500.0,0.00024657,3]
[387215596,1758652258034,-1134.61,0.00024657,3]
[387215597,1758652258043,-243.83928864,0.00024657,3]
[387215598,1758652258052,-1202.89,0.00024657,3]
[387215599,1758652258061,-431.34535233,0.00024657,3]
[387215600,1758652258070,-400.0,0.00024657,3]
[387215601,1758652258080,-2072.92,0.00024657,3]
[387215602,1758652258089,-400.0,0.00024657,3]
[387215603,1758652258101,-584.65,0.00024657,3]
[387215604,1758652258110,-999.9,0.00024657,3]
[387215605,1758652258119,-400.0,0.00024657,3]
[387215606,1758652258129,-400.0,0.00024657,3]
[387215607,1758652258139,-830.73,0.00024657,3]
[387215608,1758652258151,-1092.93,0.00024657,3]
[387215609,1758652258160,-400.0,0.00024657,3]
[387215610,1758652258170,-400.0,0.00024657,3]
[387215611,1758652258182,-400.0,0.00024657,3]
[387215612,1758652258191,-467.98,0.00024657,3]
[387215613,1758652258201,-400.0,0.00024657,3]
[387215614,1758652258211,-400.0,0.00024657,3]
[387215615,1758652258220,-400.0,0.00024657,3]
[387215616,1758652258230,-815.11,0.00024657,3]
[387215617,1758652258239,-400.0,0.00024657,3]
[387215618,1758652258248,-487.65,0.00024657,3]
[387215619,1758652258257,-400.0,0.00024657,3]
[387215620,1758652258267,-400.0,0.00024657,3]
[387215621,1758652258276,-400.0,0.00024657,3]
[387215622,1758652258285,-300.0,0.00024657,3]
[387215623,1758652258294,-1167.6,0.00024657,3]
[387215624,1758652258303,-400.0,0.00024657,3]
[387215625,1758652258312,-400.0,0.00024657,3]
[387215626,1758652258322,-541.83125544,0.00024657,3]
[387215627,1758652258331,-8282.65,0.00024657,3]
[387215628,1758652258340,-400.0,0.00024657,3]
[387215629,1758652258350,-7486.6,0.00024657,3]
[387215630,1758652258360,-1258.61,0.00024657,3]
[387215631,1758652258369,-400.0,0.00024657,3]
[387215632,1758652258378,-446.74694805,0.00024657,3]
[387215633,1758652258387,-400.0,0.00024657,3]
[387215634,1758652258398,-1282.98,0.00024657,3]
[387215635,1758652258408,-401.22779368,0.00024657,3]
[387215636,1758652258417,-400.0,0.00024657,3]
[387215637,1758652258427,-1287.8,0.00024657,3]
[387215638,1758652258436,-717.02,0.00024657,3]
[387215639,1758652258445,-2108.9,0.00024657,3]
[387215640,1758652258455,-488.21,0.00024657,3]
[387215641,1758652258463,-751.0,0.00024657,3]
[387215642,1758652258473,-438.23,0.00024657,3]
[387215643,1758652258483,-400.76263065,0.00024657,3]
[387215644,1758652258492,-400.0,0.00024657,3]
[387215645,1758652258501,-837.09,0.00024657,3]
[387215646,1758652258510,-837.09,0.00024657,3]
[387215647,1758652258520,-459.02,0.00024657,3]
[387215648,1758652258530,-837.09,0.00024657,3]
[387215649,1758652258539,-400.0,0.00024657,3]
[387215650,1758652258548,-837.09,0.00024657,3]
[387215651,1758652258558,-443.81,0.00024657,3]
[387215652,1758652258567,-837.09,0.00024657,3]
[387215653,1758652258576,-837.09,0.00024657,3]
[387215654,1758652258586,-837.09,0.00024657,3]
[387215655,1758652258595,-400.0,0.00024657,3]
[387215656,1758652258604,-837.09,0.00024657,3]
[387215657,1758652258613,-1157.93,0.00024657,3]
[387215658,1758652258622,-837.09,0.00024657,3]
[387215659,1758652258632,-400.0,0.00024657,3]
[387215660,1758652258641,-1110.63,0.00024657,3]
[387215661,1758652258652,-837.09,0.00024657,3]
[387215662,1758652258662,-837.09,0.00024657,3]
[387215663,1758652258671,-607.0,0.00024657,3]
[387215664,1758652258680,-837.09,0.00024657,3]
[387215665,1758652258690,-300.49625385,0.00024657,3]
[387215666,1758652258699,-837.09,0.00024657,3]
[387215667,1758652258708,-819.91,0.00024657,3]
[387215668,1758652258718,-837.09,0.00024657,3]
[387215669,1758652258727,-400.0,0.00024657,3]
[387215670,1758652258737,-721.36,0.00024657,3]
[387215671,1758652258746,-692.25,0.00024657,3]
[387215672,1758652258755,-837.09,0.00024657,3]
[387215673,1758652258764,-1277.06,0.00024657,3]
[387215674,1758652258774,-400.0,0.00024657,3]
[387215675,1758652258783,-837.09,0.00024657,3]
[387215676,1758652258792,-837.09,0.00024657,3]
[387215677,1758652258801,-837.09,0.00024657,3]
[387215678,1758652258811,-400.0,0.00024657,3]
[387215679,1758652258820,-400.0,0.00024657,3]
[387215680,1758652258830,-15530.99,0.00024657,2]
[387215681,1758652258839,-15530.99,0.00024657,2]
[387215682,1758652258848,-400.0,0.00024657,3]
[387215683,1758652258857,-400.0,0.00024657,3]
[387215684,1758652258867,-15530.99,0.00024657,2]
[387215685,1758652258876,-503.23706169,0.00024657,3]
[387215686,1758652258885,-15530.99,0.00024657,2]
[387215687,1758652258894,-15530.99,0.00024657,2]
[387215688,1758652258904,-1420.52,0.00024657,3]
[387215689,1758652258914,-15530.99,0.00024657,2]
[387215690,1758652258923,-15530.99,0.00024657,2]
[387215691,1758652258932,-1352.1,0.00024657,3]
[387215692,1758652258941,-15530.99,0.00024657,2]
[387215693,1758652258950,-15530.99,0.00024657,2]
[387215694,1758652258960,-15530.99,0.00024657,2]
[387215695,1758652258969,-1456.23,0.00024657,3]
[387215696,1758652258978,-400.0,0.00024657,3]
[387215697,1758652258989,-400.7811397,0.00024657,3]
[387215698,1758652258999,-15530.99,0.00024657,2]
[387215699,1758652259009,-400.0,0.00024657,3]
[387215700,1758652259018,-15530.99,0.00024657,2]
[387215701,1758652259027,-15530.99,0.00024657,2]
[387215702,1758652259036,-400.0,0.00024657,3]
[387215703,1758652259046,-400.0,0.00024657,3]
[387215704,1758652259055,-400.86176879,0.00024657,3]
[387215705,1758652259064,-400.0,0.00024657,3]
[387215706,1758652259073,-2096.07,0.00024657,3]
[387215707,1758652259083,-402.54,0.00024657,3]
[387215708,1758652259091,-400.0,0.00024657,3]
[387215709,1758652259104,-400.69445242,0.00024657,3]
[387215710,1758652259113,-1075.77,0.00024657,3]
[387215711,1758652259122,-403.56450427,0.00024657,3]
[387215712,1758652259131,-16135.43,0.00024657,3]
[387215713,1758652259141,-400.0,0.00024657,3]
[387215714,1758652259151,-400.0,0.00024657,3]
[387215715,1758652259160,-400.0,0.00024657,3]
[387215716,1758652259169,-1367.47,0.00024657,3]
[387215717,1758652259178,-400.0,0.00024657,3]
[387215718,1758652259187,-508.06,0.00024657,3]
[387215719,1758652259197,-400.0,0.00024657,3]
[387215720,1758652259206,-467.89,0.00024657,3]
[387215721,1758652259215,-400.0,0.00024657,3]
[387215722,1758652259224,-401.26017584,0.00024657,3]
[387215723,1758652259234,-974.09,0.00024657,3]
[387215724,1758652259243,-400.0,0.00024657,3]
[387215725,1758652259252,-400.0,0.00024657,3]
[387215726,1758652259261,-400.0,0.00024657,3]
[387215727,1758652259270,-400.0,0.00024657,3]
[387215728,1758652259279,-655.64,0.00024657,3]
[387215729,1758652259289,-690.46,0.00024657,3]
[387215730,1758652259299,-400.0,0.00024657,3]
[387215731,1758652259311,-400.0,0.00024657,3]
[387215732,1758652259321,-400.0,0.00024657,3]
[387215733,1758652259330,-400.0,0.00024657,3]
[387215734,1758652259339,-400.0,0.00024657,3]
[387215735,1758652259348,-400.0,0.00024657,3]
[387215736,1758652259358,-1323.59,0.00024657,3]
[387215737,1758652259368,-411.87,0.00024657,3]
[387215738,1758652259377,-400.0,0.00024657,3]
[387215739,1758652259387,-400.0,0.00024657,3]
[387215740,1758652259396,-1453.87,0.00024657,3]
[387215741,1758652259406,-709.72,0.00024657,3]
[387215742,1758652259416,-1172.99,0.00024657,3]
[387215743,1758652259426,-709.72,0.00024657,3]
[387215744,1758652259435,-709.72,0.00024657,3]
[387215745,1758652259444,-400.0,0.00024657,3]
[387215746,1758652259454,-709.72,0.00024657,3]
[387215747,1758652259463,-3195.25,0.00024657,3]
[387215748,1758652259472,-709.72,0.00024657,3]
[387215749,1758652259481,-400.0,0.00024657,3]
[387215750,1758652259491,-902.7,0.00024657,3]
[387215751,1758652259500,-709.72,0.00024657,3]
[387215752,1758652259510,-709.72,0.00024657,3]
[387215753,1758652259519,-709.72,0.00024657,3]
[387215754,1758652259528,-400.0,0.00024657,3]
[387215755,1758652259538,-709.72,0.00024657,3]
[387215756,1758652259547,-709.72,0.00024657,3]
[387215757,1758652259557,-709.72,0.00024657,3]
[387215758,1758652259567,-709.72,0.00024657,3]
[387215759,1758652259577,-709.72,0.00024657,3]
[387215760,1758652259587,-12890.11,0.00024657,3]
[387215761,1758652259596,-500.0,0.00024657,3]
[387215762,1758652259606,-404.2306336,0.00024657,3]
[387215763,1758652259625,-500.0,0.00024657,3]
[387215764,1758652259637,-400.0,0.00024657,3]
[387215765,1758652259649,-500.0,0.00024657,3]
[387215766,1758652259660,-1063.76,0.00024657,3]
[387215767,1758652259671,-500.0,0.00024657,3]
[387215768,1758652259681,-1383.85,0.00024657,3]
[387215769,1758652259692,-500.0,0.00024657,3]
[387215770,1758652259703,-500.0,0.00024657,3]
[387215771,1758652259714,-1113.05,0.00024657,3]
[387215772,1758652259724,-500.0,0.00024657,3]
[387215773,1758652259735,-500.0,0.00024657,3]
[387215774,1758652259745,-500.0,0.00024657,3]
[387215775,1758652259756,-400.0,0.00024657,3]
[387215776,1758652259766,-500.0,0.00024657,3]
[387215777,1758652259777,-500.0,0.00024657,3]
[387215778,1758652259789,-500.0,0.00024657,3]
[387215779,1758652259799,-500.0,0.00024657,3]
[387215780,1758652259809,-1547.62,0.00024657,3]
[387215781,1758652259820,-500.0,0.00024657,3]
[387215782,1758652259831,-400.0,0.00024657,3]
[387215783,1758652259842,-500.0,0.00024657,3]
[387215784,1758652259853,-2118.57,0.00024657,3]
[387215785,1758652259864,-500.0,0.00024657,3]
[387215786,1758652259875,-500.0,0.00024657,3]
[387215787,1758652259886,-468.89288621,0.00024657,3]
[387215788,1758652259896,-400.82724967,0.00024657,3]
[387215789,1758652259907,-400.0,0.00024657,3]
[387215790,1758652259916,-1403.23,0.00024657,3]
[387215791,1758652259926,-400.0,0.00024657,3]
[387215792,1758652259936,-477.44,0.00024657,3]
[387215793,1758652259946,-400.0,0.00024657,3]
[387215794,1758652259956,-401.03357954,0.00024657,3]
[387215795,1758652259966,-403.13767039,0.00024657,3]
[387215796,1758652259975,-2446.04,0.00024657,3]
[387215797,1758652259985,-905.19,0.00024657,3]
[387215798,1758652259995,-3532.7,0.00024657,3]
[387215799,1758652260005,-400.0,0.00024657,3]
[387215800,1758652260015,-1255.21,0.00024657,3]
[387215801,1758652260025,-400.70142171,0.00024657,3]
[387215802,1758652260035,-1933.02,0.00024657,3]
[387215803,1758652260045,-400.0,0.00024657,3]
[387215804,1758652260056,-400.0,0.00024657,3]
[387215805,1758652260067,-402.33542083,0.00024657,3]
[387215806,1758652260078,-400.0,0.00024657,3]
[387215807,1758652260088,-400.0,0.00024657,3]
[387215808,1758652260099,-1115.25,0.00024657,3]
[387215809,1758652260110,-400.0,0.00024657,3]
[387215810,1758652260119,-401.6064101,0.00024657,3]
[387215811,1758652260129,-400.0,0.00024657,3]
[387215812,1758652260139,-400.0,0.00024657,3]
[387215813,1758652260149,-400.0,0.00024657,3]
[387215814,1758652260159,-400.0,0.00024657,3]
[387215815,1758652260169,-400.0,0.00024657,3]
[387215816,1758652260178,-400.0,0.00024657,3]
[387215817,1758652260189,-410.16,0.00024657,3]
[387215818,1758652260200,-1248.39,0.00024657,3]
[387215819,1758652260209,-400.0,0.00024657,3]
[387215820,1758652260220,-400.0,0.00024657,3]
[387215821,1758652260231,-400.0,0.00024657,3]
[387215822,1758652260243,-400.0,0.00024657,3]
[387215823,1758652260253,-400.0,0.00024657,3]
[387215824,1758652260264,-400.0,0.00024657,3]
[387215825,1758652260274,-400.0,0.00024657,3]
[387215826,1758652260284,-7017.34,0.00024657,3]
[387215827,1758652260294,-1523.78,0.00024657,3]
[387215828,1758652260304,-400.0,0.00024657,3]
[387215829,1758652260313,-400.0,0.00024657,3]
[387215830,1758652260323,-558.67,0.00024657,3]
[387215831,1758652260334,-2375.41,0.00024657,3]
[387215832,1758652260344,-400.0,0.00024657,3]
[387215833,1758652260354,-3353.99,0.00024657,3]
[387215834,1758652260364,-400.0,0.00024657,3]
[387215835,1758652260374,-1159.98,0.00024657,3]
[387215836,1758652260384,-400.0,0.00024657,3]
[387215837,1758652260393,-400.0,0.00024657,3]
[387215838,1758652260404,-400.0,0.00024657,3]
[387215839,1758652260414,-400.0,0.00024657,3]
[387215840,1758652260424,-400.0,0.00024657,3]
[387215841,1758652260434,-400.0,0.00024657,3]
[387215842,1758652260444,-1201.91,0.00024657,3]
[387215843,1758652260454,-400.0,0.00024657,3]
[387215844,1758652260464,-400.0,0.00024657,3]
[387215845,1758652260474,-400.0,0.00024657,3]
[387215846,1758652260485,-1172.31,0.00024657,3]
[387215847,1758652260495,-2955.24,0.00024657,3]
[387215848,1758652260505,-400.0,0.00024657,3]
[387215849,1758652260518,-511.96,0.00024657,3]
[387215850,1758652260528,-400.0,0.00024657,3]
[387215851,1758652260538,-400.0,0.00024657,3]
[387215852,1758652260548,-1105.04,0.00024657,3]
[387215853,1758652260558,-400.0,0.00024657,3]
[387215854,1758652260568,-2121.35,0.00024657,3]
[387215855,1758652260577,-1579.95,0.00024657,3]
[387215856,1758652260588,-400.0,0.00024657,3]
[387215857,1758652260598,-400.0,0.00024657,3]
[387215858,1758652260608,-8732.72,0.00024657,3]
[387215859,1758652260618,-491.9,0.00024657,3]
[387215860,1758652260627,-400.0,0.00024657,3]
[387215861,1758652260637,-400.0,0.00024657,3]
[387215862,1758652260646,-7115.86,0.00024657,3]
[387215863,1758652260656,-1549.69,0.00024657,3]
[387215864,1758652260666,-400.0,0.00024657,3]
[387215865,1758652260675,-400.0,0.00024657,3]
[387215866,1758652260685,-409.33967049,0.00024657,3]
[387215867,1758652260695,-400.0,0.00024657,3]
[387215868,1758652260705,-400.0,0.00024657,3]
[387215869,1758652260715,-436.7,0.00024657,3]
[387215870,1758652260724,-400.0,0.00024657,3]
[387215871,1758652260735,-400.0,0.00024657,3]
[387215872,1758652260746,-1055.26,0.00024657,3]
[387215873,1758652260756,-560.8,0.00024657,3]
[387215874,1758652260767,-1025.89,0.00024657,3]
[387215875,1758652260777,-1065.6,0.00024657,3]
[387215876,1758652260788,-400.0,0.00024657,3]
[387215877,1758652260809,-400.0,0.00024657,3]
[387215878,1758652260821,-1118.38,0.00024657,3]
[387215879,1758652260830,-400.0,0.00024657,3]
[387215880,1758652260840,-1589.69,0.00024657,3]
[387215881,1758652260850,-3115.62,0.00024657,3]
[387215882,1758652260860,-964.71,0.00024657,3]
[387215883,1758652260870,-400.0,0.00024657,3]
[387215884,1758652260880,-400.0,0.00024657,3]
[387215885,1758652260890,-1803.88,0.00024657,3]
[387215886,1758652260902,-710.1,0.00024657,3]
[387215887,1758652260912,-1029.4,0.00024657,3]
[387215888,1758652260922,-400.0,0.00024657,3]
[387215889,1758652260933,-477.97,0.00024657,3]
[387215890,1758652260943,-457.8,0.00024657,3]
[387215891,1758652260953,-744.77,0.00024657,3]
[387215892,1758652260963,-412.66296743,0.00024657,3]
[387215893,1758652260972,-6823.94,0.00024657,3]
[387215894,1758652260983,-766.94,0.00024657,3]
[387215895,1758652260993,-1167.57,0.00024657,3]
[387215896,1758652261003,-400.0,0.00024657,3]
[387215897,1758652261012,-985.39,0.00024657,3]
[387215898,1758652261022,-403.01,0.00024657,3]
[387215899,1758652261032,-462.26,0.00024657,3]
[387215900,1758652261042,-2190.36,0.00024657,3]
[387215901,1758652261051,-400.0,0.00024657,3]
[387215902,1758652261061,-400.0,0.00024657,3]
[387215903,1758652261071,-400.0,0.00024657,3]
[387215904,1758652261081,-400.0,0.00024657,3]
[387215905,1758652261091,-1394.68,0.00024657,3]
[387215906,1758652261105,-1433.35,0.00024657,3]
[387215907,1758652261115,-1687.97,0.00024657,3]
[387215908,1758652261125,-403.42,0.00024657,3]
[387215909,1758652261135,-662.91,0.00024657,3]
[387215910,1758652261146,-400.0,0.00024657,3]
[387215911,1758652261158,-400.0,0.00024657,3]
[387215912,1758652261168,-400.0,0.00024657,3]
[387215913,1758652261179,-400.0,0.00024657,3]
[387215914,1758652261189,-1540.02,0.00024657,3]
[387215915,1758652261200,-1320.54,0.00024657,3]
[387215916,1758652261210,-400.0,0.00024657,3]
[387215917,1758652261220,-400.0,0.00024657,3]
[387215918,1758652261230,-400.0,0.00024657,3]
[387215919,1758652261240,-400.0,0.00024657,3]
[387215920,1758652261250,-815.03,0.00024657,3]
[387215921,1758652261260,-151.0,0.00024657,7]
[387215922,1758652261271,-400.0,0.00024657,3]
[387215923,1758652261281,-1541.54,0.00024657,3]
[387215924,1758652261291,-159.636782,0.00024657,7]
[387215925,1758652261301,-3164.63,0.00024657,3]
[387215926,1758652261310,-423.13,0.00024657,3]
[387215927,1758652261320,-400.0,0.00024657,3]
[387215928,1758652261330,-400.0,0.00024657,3]
[387215929,1758652261340,-476.74,0.00024657,3]
[387215930,1758652261351,-7459.67,0.00024657,3]
[387215931,1758652261362,-151.0,0.00024657,7]
[387215932,1758652261372,-400.0,0.00024657,3]
[387215933,1758652261382,-400.0,0.00024657,3]
[387215934,1758652261392,-400.0,0.00024657,3]
[387215935,1758652261403,-400.0,0.00024657,3]
[387215936,1758652261412,-975.16,0.00024657,3]
[387215937,1758652261422,-400.0,0.00024657,3]
[387215938,1758652261431,-151.0,0.00024657,7]
[387215939,1758652261442,-151.0,0.00024657,7]
[387215940,1758652261452,-1185.45,0.00024657,3]
[387215941,1758652261462,-400.0,0.00024657,3]
[387215942,1758652261472,-151.0,0.00024657,7]
[387215943,1758652261482,-990.76,0.00024657,3]
[387215944,1758652261493,-1804.89,0.00024657,3]
[387215945,1758652261503,-151.0,0.00024657,7]
[387215946,1758652261513,-1036.13,0.00024657,3]
[387215947,1758652261523,-151.0,0.00024657,7]
[387215948,1758652261534,-156.216136,0.00024657,7]
[387215949,1758652261545,-1306.04,0.00024657,3]
[387215950,1758652261555,-1825.36,0.00024657,3]
[387215951,1758652261565,-400.0,0.00024657,3]
[387215952,1758652261575,-151.0,0.00024657,7]
[387215953,1758652261585,-151.0,0.00024657,7]
[387215954,1758652261595,-400.0,0.00024657,3]
[387215955,1758652261609,-400.0,0.00024657,3]
[387215956,1758652261619,-400.0,0.00024657,3]
[387215957,1758652261629,-400.0,0.00024657,3]
[387215958,1758652261639,-400.0,0.00024657,3]
[387215959,1758652261649,-1608.76,0.00024657,3]
[387215960,1758652261659,-400.0,0.00024657,3]
[387215961,1758652261669,-1462.74,0.00024657,3]
[387215962,1758652261679,-151.0,0.00024657,7]